bitfinex/quotes_ETHUSD_20240924
["timestamp","ask_amount","ask_price","bid_price","bid_amount"]
[1727192442399,3.82248,2616.1,2616.0,0.038]
[1727192443012,4.68474595,2616.1,2616.0,0.038]
[1727192443170,5.72487428,2616.1,2616.0,0.038]
[1727192443357,5.82044644,2616.1,2616.0,0.038]
[1727192443796,5.72487428,2616.1,2616.0,0.038]
[1727192444004,1.90239428,2616.1,2616.0,0.038]
[1727192444204,0.7667,2616.1,2616.0,0.038]
[1727192444760,4.58883,2616.4,2616.0,0.038]
[1727192445854,8.41095,2616.4,2616.0,0.038]
[1727192446053,4.58882,2616.4,2616.0,0.038]
[1727192447195,3.82248,2616.1,2616.0,0.038]
[1727192448567,4.58358,2616.1,2616.0,0.038]
[1727192451764,0.7611,2616.1,2616.0,0.038]
[1727192452703,0.9174984,2616.4,2616.0,0.038]
[1727192452905,4.58309,2616.5,2616.0,0.038]
[1727192453306,3.82205,2616.4,2616.0,0.038]
[1727192454019,0.7611,2616.5,2616.0,0.038]
[1727192454309,4.58308,2616.5,2616.0,0.038]
[1727192454466,4.3568614,2616.4,2616.0,0.038]
[1727192455501,3.8222,2616.3,2616.0,0.038]
[1727192455719,7.64448,2616.3,2616.0,0.038]
[1727192455874,3.8222,2616.3,2616.0,0.038]
[1727192456720,3.82236,2616.2,2616.0,0.038]
[1727192456869,4.64029014,2616.2,2616.0,0.038]
[1727192457069,0.81793014,2616.2,2616.0,0.038]
[1727192457329,3.8222,2616.3,2616.0,0.038]
[1727192458032,3.82248,2616.1,2616.0,0.038]
[1727192458210,4.58358,2616.1,2616.0,0.038]
[1727192459074,4.67915247,2616.1,2616.0,0.038]
[1727192459271,8.81428621,2616.1,2616.0,0.038]
[1727192459574,11.56855983,2616.1,2616.0,0.038]
[1727192462887,14.41655983,2616.1,2616.0,0.038]
[1727192463291,3.82414,2615.0,2614.7,0.0140479]
[1727192463491,4.206554,2615.0,2614.7,0.0140479]
[1727192463737,3.82414,2615.0,2614.7,0.0140479]
[1727192463889,6.67422689,2614.8,2614.7,0.0140479]
[1727192464095,6.76984601,2614.8,2614.7,0.0140479]
[1727192464441,6.67422689,2614.8,2614.7,0.0140479]
[1727192464592,7.80131258,2614.8,2614.7,0.0140479]
[1727192464791,4.95146569,2614.8,2614.7,0.0140479]
[1727192468127,7.44647689,2614.9,2614.7,0.0140479]
[1727192468430,10.29,2615.4,2614.7,0.54489092]
[1727192468431,3.82409,2615.0,2614.7,0.54489092]
[1727192468631,3.82409,2615.0,2614.7,0.0140479]
[1727192469541,4.59629,2615.2,2614.7,0.0140479]
[1727192469749,3.82403,2615.1,2614.7,0.0140479]
[1727192470419,3.82426,2614.9,2614.7,0.0140479]
[1727192470622,3.82421,2615.0,2614.7,0.0140479]
[1727192470803,3.82431,2614.9,2614.7,0.0140479]
[1727192471006,3.82431,2614.9,2614.3,3.825]
[1727192471007,3.82431,2614.9,2614.4,3.82488]
[1727192471189,3.82421,2615.0,2614.5,3.82479]
[1727192471391,1.30439606,2615.0,2614.5,3.82474]
[1727192471614,3.82418,2615.0,2614.5,3.82473]
[1727192472337,3.82418,2615.0,2614.6,3.82467]
[1727192472647,4.59628,2615.2,2614.7,0.808]
[1727192472940,3.82395,2615.1,2614.7,0.808]
[1727192473139,4.59628,2615.2,2614.7,4.63251]
[1727192473649,0.7724,2615.2,2614.7,4.63251]
[1727192473936,3.82395,2615.1,2614.7,4.63251]
[1727192474156,0.7724,2615.2,2614.7,4.63244]
[1727192474297,3.82396,2615.1,2614.7,4.63244]
[1727192474798,0.7724,2615.2,2614.7,4.63244]
[1727192474999,4.59622,2615.2,2614.7,4.63244]
[1727192475317,0.7724,2615.2,2614.8,3.82436]
[1727192475819,4.5962,2615.2,2614.7,4.63244]
[1727192476032,0.7724,2615.2,2614.7,4.63244]
[1727192476536,3.82373,2615.3,2614.8,3.82437]
[1727192476834,0.7724,2615.4,2614.8,7.64872]
[1727192476835,3.82353,2615.4,2614.8,7.64872]
[1727192477019,3.82353,2615.4,2614.4,0.808]
[1727192477020,3.62224689,2615.2,2614.4,0.808]
[1727192477333,3.82395,2615.1,2614.6,3.82459]
[1727192477837,3.82395,2615.1,2614.7,3.82451]
[1727192477999,7.64798,2615.1,2614.6,3.82459]
[1727192478331,0.44675328,2615.0,2614.6,3.82459]
[1727192478895,7.6486,2614.9,2614.4,4.63291]
[1727192479127,3.8244,2614.8,2614.4,3.82491]
[1727192479385,8.45815533,2614.9,2614.4,3.82491]
[1727192479948,4.63378533,2614.9,2614.4,7.64978]
[1727192480243,3.82438,2614.8,2614.3,3.8251]
[1727192481962,0.09563148,2614.4,2614.0,3.82547]
[1727192483195,0.09563148,2614.4,2613.9,0.8461257]
[1727192483196,4.59765132,2614.4,2613.9,0.8461257]
[1727192483603,4.59765132,2614.4,2613.9,3.8637657]
[1727192483967,4.59765132,2614.4,2613.9,0.0381257]
[1727192483968,3.62250821,2614.4,2613.9,0.0381257]
[1727192484303,4.59795,2614.0,2613.9,0.0381257]
[1727192484513,5.14795,2614.0,2613.9,0.0381257]
[1727192485008,8.14795,2614.0,2613.9,0.0381257]
[1727192487306,8.14795,2614.0,2613.2,0.0262514]
[1727192487307,4.59897,2613.3,2613.2,0.0262514]
[1727192487451,7.44881689,2613.3,2613.2,0.0262514]
[1727192490289,7.99881689,2613.3,2613.2,0.0262514]
[1727192491511,7.44881689,2613.3,2613.2,0.0262514]
[1727192491808,4.59897,2613.3,2613.2,0.0262514]
[1727192491959,8.29136689,2613.3,2613.2,0.0262514]
[1727192492364,8.81936689,2613.3,2613.2,0.0262514]
[1727192493278,11.81936689,2613.3,2613.2,0.0262514]
[1727192495800,5.41952,2613.3,2613.2,0.0262514]
[1727192497407,8.26936689,2613.3,2613.2,0.0262514]
[1727192500338,8.81936689,2613.3,2613.2,0.0262514]
[1727192502092,8.26936689,2613.3,2613.2,0.0262514]
[1727192504542,3.82624,2613.6,2613.2,0.0262514]
[1727192504837,3.82629,2613.5,2613.2,0.8175514]
[1727192505613,3.82605,2613.7,2613.2,0.8175514]
[1727192505833,11.11578,2613.9,2613.2,4.6441714]
[1727192506136,0.7504,2614.1,2613.2,4.6442714]
[1727192506337,3.82511,2614.3,2613.7,0.7563]
[1727192506537,3.82511,2614.3,2613.8,3.82577]
[1727192506830,3.82511,2614.3,2613.7,0.7563]
[1727192507041,3.82526,2614.2,2613.7,4.58226]
[1727192508353,2.94549159,2614.1,2613.5,0.7563]
[1727192508510,6.67595689,2613.7,2613.2,0.7825514]
[1727192508720,0.09566633,2613.6,2613.2,4.6092014]
[1727192509004,6.67562689,2613.9,2613.2,4.6092014]
[1727192509212,3.82584,2613.8,2613.3,3.82656]
[1727192510832,3.82578,2613.9,2613.3,3.82656]
[1727192511031,3.82578,2613.9,2613.5,3.82627]
[1727192511572,3.82578,2613.9,2613.3,7.65299]
[1727192511734,3.82555,2614.0,2613.5,3.82622]
[1727192513211,3.82555,2614.0,2613.4,3.82631]
[1727192513212,3.92143518,2613.9,2613.4,3.82631]
[1727192513339,4.87563869,2614.0,2613.5,3.82622]
[1727192514280,0.09565515,2613.9,2613.5,3.82622]
[1727192514664,4.87563869,2614.0,2613.5,3.82622]
[1727192514997,3.82555,2614.0,2613.5,3.82622]
[1727192515280,10.90304689,2614.7,2613.8,3.8257]
[1727192515438,3.82505,2614.4,2613.9,3.82562]
[1727192516074,3.82505,2614.4,2614.0,3.82554]
[1727192516233,3.8249,2614.5,2614.0,4.58174]
[1727192516437,3.82471,2614.6,2614.1,3.82533]
[1727192516671,7.29,2614.9,2614.0,0.7563]
[1727192516672,13.96408689,2614.9,2614.4,3.82489]
[1727192516878,8.989795,2614.9,2614.4,3.82489]
[1727192517406,11.83964189,2614.9,2614.4,3.82489]
[1727192517607,3.82438,2614.8,2614.4,3.82489]
[1727192517806,8.01530189,2614.9,2614.4,3.82489]
[1727192518007,0.87785019,2614.8,2614.4,3.82489]
[1727192519410,0.87785019,2614.8,2614.2,3.82514]
[1727192519594,3.82456,2614.7,2614.2,7.65031]
[1727192519800,6.67415689,2614.9,2614.2,3.82514]
[1727192519964,6.67415689,2614.9,2614.5,0.7563]
[1727192520169,1.42615569,2614.9,2614.5,4.58111]
[1727192520687,3.0,2615.2,2614.8,3.82437]
[1727192520884,3.82383,2615.2,2614.7,3.82452]
[1727192521223,3.82383,2615.2,2614.7,3.82445]
[1727192521436,4.664908,2615.2,2614.7,3.82445]
[1727192521973,4.664868,2615.2,2614.8,3.82437]
[1727192522516,0.841078,2615.2,2614.8,3.82437]
[1727192522719,3.82365,2615.3,2614.8,7.64867]
[1727192522873,3.82365,2615.3,2614.8,3.8243]
[1727192525777,3.82365,2615.3,2614.8,7.6486]
[1727192525979,3.82365,2615.3,2614.8,3.8243]
[1727192526205,4.95719812,2615.3,2614.8,3.8243]
[1727192526977,3.8238,2615.2,2614.7,3.82452]
[1727192528176,7.80704501,2615.3,2614.5,0.7563]
[1727192528177,2.94545296,2615.1,2614.5,0.7563]
[1727192528385,3.82438,2614.8,2614.5,0.7563]
[1727192528806,3.82438,2614.8,2614.2,4.63323]
[1727192528807,3.82453,2614.7,2614.2,4.63323]
[1727192529017,6.67437689,2614.7,2614.2,0.808]
[1727192529231,3.82483,2614.5,2614.2,0.808]
[1727192529589,6.67437689,2614.7,2614.2,0.808]
[1727192529813,3.82467,2614.6,2614.2,0.808]
[1727192530181,3.51728458,2614.7,2614.2,0.808]
[1727192530388,3.67654689,2614.5,2613.9,0.808]
[1727192530714,3.82518,2614.3,2613.9,0.808]
[1727192531893,0.09563712,2614.2,2613.9,0.808]
[1727192532432,2.94548405,2614.1,2613.6,0.808]
[1727192532635,3.82571,2613.9,2613.4,4.63433]
[1727192532834,0.29454841,2614.0,2613.4,4.63433]
[1727192533003,4.12009841,2614.0,2613.4,4.63433]
[1727192533327,3.92138098,2613.9,2613.4,4.63433]
[1727192533990,0.09565098,2613.9,2613.4,8.46068]
[1727192534927,0.09565098,2613.9,2613.4,8.46069]
[1727192535332,0.09565098,2613.9,2613.4,4.63433]
[1727192535638,3.82599,2613.7,2613.4,0.808]
[1727192535863,7.94312645,2613.9,2613.3,3.82655]
[1727192535864,3.82584,2613.8,2613.3,3.82655]
[1727192536224,3.82584,2613.8,2613.4,3.82643]
[1727192537315,1.17179863,2613.9,2613.4,3.82634]
[1727192537523,4.99763863,2613.9,2613.4,3.82634]
[1727192539225,3.82584,2613.9,2613.4,3.82634]
[1727192539740,3.67654689,2614.1,2613.2,4.6608814]
[1727192540057,3.82596,2613.8,2613.3,3.82657]
[1727192543320,3.67654689,2614.1,2613.2,0.8342514]
[1727192543523,3.82636,2613.5,2613.2,0.8342514]
[1727192543825,3.82645,2613.4,2613.2,0.0262514]
[1727192544628,7.65278,2613.5,2613.2,0.0262514]
[1727192544849,3.82646,2613.4,2613.2,0.0262514]
[1727192545565,3.82629,2613.5,2613.2,0.0262514]
[1727192546624,3.82649,2613.4,2613.2,0.0262514]
[1727192548266,4.95919769,2613.5,2613.2,0.0262514]
[1727192550267,3.8263,2613.5,2613.2,0.0262514]
[1727192550859,3.82657,2613.3,2613.2,0.0262514]
[1727192551042,6.67641689,2613.3,2613.2,0.0262514]
[1727192551240,6.77209381,2613.3,2613.2,0.0262514]
[1727192551491,7.57200017,2613.3,2613.2,0.0262514]
[1727192551672,9.2618608,2613.3,2613.2,0.0262514]
[1727192551843,9.16617391,2613.3,2613.2,0.0262514]
[1727192554801,6.31632702,2613.3,2613.2,0.0262514]
[1727192558293,3.82657,2613.4,2613.2,0.0262514]
[1727192558520,3.82657,2613.3,2613.2,0.0262514]
[1727192559091,3.82657,2613.4,2613.2,0.0262514]
[1727192559596,3.82643,2613.5,2613.2,0.0262514]
[1727192559767,3.82643,2613.4,2613.2,0.0262514]
[1727192561306,7.65294,2613.4,2613.2,0.0262514]
[1727192561512,3.82643,2613.4,2613.2,0.0262514]
[1727192561715,7.65299,2613.4,2613.2,0.0262514]
[1727192562008,3.82657,2613.3,2613.2,0.0262514]
[1727192563574,7.80146135,2613.3,2613.2,0.0262514]
[1727192567477,4.95161446,2613.3,2613.2,0.0262514]
[1727192574662,3.82657,2613.3,2613.2,0.0262514]
[1727192587677,12.2,2614.3,2613.2,0.0262514]
[1727192587678,2.3,2614.1,2613.2,0.8342514]
[1727192587883,3.82439,2614.8,2614.2,3.82519]
[1727192588044,3.82439,2614.8,2614.3,0.808]
[1727192588245,4.61347,2615.2,2614.4,3.90134565]
[1727192588446,3.82387,2615.2,2614.6,3.82464]
[1727192588643,4.285227,2615.2,2614.7,0.808]
[1727192588844,0.461347,2615.2,2614.7,1.46709764]
[1727192589080,3.82403,2615.1,2614.7,0.808]
[1727192589372,3.82382,2615.2,2614.7,0.808]
[1727192589574,3.82397,2615.1,2614.7,0.808]
[1727192590145,3.8241,2615.0,2614.7,0.808]
[1727192590335,3.8241,2615.0,2614.4,3.82488]
[1727192590536,3.8241,2615.0,2614.3,0.808]
[1727192590537,3.82447,2614.8,2614.3,0.808]
[1727192590849,0.09562023,2614.7,2614.3,0.808]
[1727192591245,3.92031023,2614.6,2614.3,0.808]
[1727192591570,3.92031023,2614.6,2614.0,3.82545]
[1727192591571,3.82469,2614.6,2614.0,3.82545]
[1727192591774,7.64947,2614.6,2614.0,3.82545]
[1727192592068,3.82482,2614.5,2614.0,3.82545]
[1727192592370,3.82469,2614.6,2614.0,3.82545]
[1727192592675,3.82483,2614.5,2614.0,3.82545]
[1727192594061,3.82469,2614.6,2614.0,3.82545]
[1727192594251,7.64946,2614.6,2614.0,3.82545]
[1727192594640,3.82469,2614.6,2614.1,3.82531]
[1727192594951,3.82418,2615.0,2614.2,0.808]
[1727192595149,4.89269689,2615.0,2614.2,0.808]
[1727192595375,3.82438,2614.8,2614.3,3.82502]
[1727192596239,4.89269689,2615.0,2614.3,3.82502]
[1727192596440,4.39250969,2614.9,2614.3,3.82502]
[1727192597078,3.82439,2614.8,2614.3,3.82502]
[1727192597876,0.56822969,2614.9,2614.3,3.82502]
[1727192598066,3.82452,2614.8,2614.3,3.82502]
[1727192598465,3.82468,2614.6,2614.2,0.808]
[1727192599176,3.82462,2614.7,2614.2,0.808]
[1727192599177,7.64922,2614.7,2614.2,0.808]
[1727192599549,3.8246,2614.7,2614.2,0.808]
[1727192599886,3.8246,2614.7,2614.2,4.63323]
[1727192600055,7.64921,2614.7,2614.2,4.63323]
[1727192600681,3.8246,2614.7,2614.2,4.63323]
[1727192601383,7.64921,2614.7,2614.2,4.63323]
[1727192601681,3.8246,2614.7,2614.2,4.63323]
[1727192601844,3.8246,2614.7,2614.2,5.2027443]
[1727192602038,3.8246,2614.7,2614.3,0.5695143]
[1727192602466,3.8246,2614.7,2614.2,4.63323]
[1727192602982,3.8246,2614.7,2614.2,0.808]
[1727192603155,8.08854297,2614.7,2614.2,0.808]
[1727192603349,3.82471,2614.6,2614.2,0.808]
[1727192604664,4.26381297,2614.7,2614.2,4.63322]
[1727192604988,3.82438,2614.8,2614.3,3.82502]
[1727192605151,3.82453,2614.7,2614.2,4.63322]
[1727192605651,3.82453,2614.7,2614.2,5.2027343]
[1727192605875,3.82439,2614.8,2614.3,3.82503]
[1727192606256,3.8246,2614.7,2614.2,0.808]
[1727192606464,3.8246,2614.7,2614.2,4.63315]
[1727192607597,3.8246,2614.7,2614.3,3.8251]
[1727192608495,0.43925297,2614.8,2614.3,3.8251]
[1727192608676,4.61357,2615.1,2614.4,3.82486]
[1727192608878,8.0796,2615.3,2614.5,5.2022243]
[1727192609187,3.82388,2615.2,2614.7,3.82451]
[1727192609488,3.82395,2615.1,2614.6,3.82467]
[1727192610786,3.82395,2615.1,2614.5,4.63271]
[1727192610787,3.82388,2615.2,2614.7,3.82451]
[1727192611013,3.82394,2615.1,2614.7,3.82451]
[1727192611596,7.64775,2615.2,2614.7,3.82451]
[1727192612119,3.82387,2615.2,2614.7,3.82451]
[1727192612272,3.82398,2615.1,2614.6,3.82467]
[1727192612817,3.82387,2615.2,2614.7,3.82451]
[1727192613021,11.1252643,2615.5,2614.9,3.82411]
[1727192613315,0.0118743,2615.5,2615.0,1.3775143]
[1727192613472,0.0118743,2615.5,2615.2,3.82376]
[1727192615225,0.0118743,2615.5,2615.1,3.82393]
[1727192616629,0.0118743,2615.5,2615.0,4.632]
[1727192616630,0.0118743,2615.5,2615.3,0.808]
[1727192619237,0.0118743,2615.5,2615.1,4.63192]
[1727192619433,3.82386,2615.2,2614.7,3.82445]
[1727192619842,7.64777,2615.2,2614.7,3.82445]
[1727192619998,3.82386,2615.2,2614.7,3.82442]
[1727192620192,3.8353143,2615.5,2615.0,3.82408]
[1727192620408,3.82359,2615.4,2614.9,3.82422]
[1727192620704,3.82359,2615.4,2614.8,4.31656097]
[1727192620705,3.82375,2615.3,2614.7,7.6489]
[1727192621026,3.82375,2615.3,2614.7,3.82445]
[1727192621223,3.82354,2615.4,2614.9,3.82423]
[1727192621422,3.82354,2615.4,2614.9,3.82415]
[1727192621733,3.82381,2615.2,2614.7,3.82443]
[1727192621904,0.84634043,2615.4,2614.7,3.82443]
[1727192622109,3.82373,2615.3,2614.7,7.64883]
[1727192622340,3.82373,2615.3,2614.8,0.3495]
[1727192622498,3.82373,2615.3,2614.8,4.17386]
[1727192622704,7.6475,2615.3,2614.8,0.3495]
[1727192622915,3.82373,2615.3,2614.8,0.3495]
[1727192623099,3.82394,2615.1,2614.8,0.3495]
[1727192623303,3.82394,2615.1,2614.5,4.17423]
[1727192623304,4.62844,2615.1,2614.5,4.17423]
[1727192623519,3.82434,2614.9,2614.5,0.3495]
[1727192623800,3.82438,2614.8,2614.5,0.3495]
[1727192624301,3.82438,2614.8,2614.3,7.99953]
[1727192624497,4.669628,2614.9,2614.3,7.99953]
[1727192624706,4.669628,2614.9,2614.4,3.82494]
[1727192624925,3.82434,2614.9,2614.4,3.82494]
[1727192626237,3.82434,2614.9,2614.5,3.8248]
[1727192626933,3.82403,2615.1,2614.6,3.82465]
[1727192627905,7.64807,2615.1,2614.6,3.82465]
[1727192628105,3.82399,2615.1,2614.7,4.17393]
[1727192628643,3.82399,2615.1,2614.7,0.3495]
[1727192628808,4.70572704,2615.1,2614.7,0.3495]
[1727192629500,4.70568704,2615.1,2614.7,0.3495]
[1727192629705,3.82417,2615.0,2614.5,4.17427]
[1727192630423,4.70568704,2615.1,2614.5,0.3495]
[1727192630600,3.82409,2615.0,2614.6,3.82467]
[1727192630803,4.70568704,2615.1,2614.6,3.82467]
[1727192631003,3.82389,2615.2,2614.7,3.8244]
[1727192631647,3.82389,2615.2,2614.8,3.82438]
[1727192632341,1.16946043,2615.3,2614.8,3.82438]
[1727192632501,3.82381,2615.2,2614.8,3.82438]
[1727192632709,3.8238,2615.2,2614.8,3.8243]
[1727192633138,3.8238,2615.2,2614.7,3.8245]
[1727192634107,1.16946043,2615.3,2614.9,3.82423]
[1727192634799,4.99312043,2615.3,2614.9,3.82423]
[1727192635207,1.18167204,2615.2,2614.7,0.49218097]
[1727192635507,3.82401,2615.1,2614.5,0.3495]
[1727192635707,0.55,2615.2,2614.5,0.3495]
[1727192635907,0.55,2615.2,2614.5,4.17429]
[1727192635908,3.8242,2615.0,2614.5,4.17429]
[1727192636831,3.82447,2614.8,2614.2,3.82523]
[1727192637109,4.6102,2614.9,2614.4,3.82495]
[1727192637309,8.43455,2614.9,2614.4,3.82495]
[1727192637501,4.6102,2614.9,2614.4,3.82495]
[1727192637709,7.05713732,2615.3,2614.5,0.3495]
[1727192637710,3.82395,2615.1,2614.5,0.3495]
[1727192637907,3.82395,2615.1,2614.6,3.82459]
[1727192638359,0.0118743,2615.5,2615.2,3.82378]
[1727192638512,0.0118743,2615.5,2615.4,3.8235]
[1727192639731,0.0118743,2615.5,2615.3,3.82363]
[1727192639937,0.0118743,2615.5,2615.3,3.82357]
[1727192640310,0.0118743,2615.5,2615.1,4.17337]
[1727192640549,3.8352943,2615.5,2615.1,0.3495]
[1727192640849,0.47399373,2615.5,2615.1,0.3495]
[1727192641033,0.0118743,2615.5,2615.1,4.1734]
[1727192641433,0.0118743,2615.5,2615.2,3.82378]
[1727192642053,0.0118743,2615.5,2615.1,4.1734]
[1727192642265,0.0118743,2615.5,2615.1,7.99725]
[1727192642549,0.0118743,2615.5,2615.1,4.17335]
[1727192642747,0.0118743,2615.5,2615.1,7.99721]
[1727192643752,0.0118743,2615.5,2615.1,0.3495]
[1727192643936,3.8236,2615.4,2614.9,3.82414]
[1727192644262,3.82365,2615.3,2614.8,4.17386]
[1727192644421,3.91924939,2615.3,2614.8,0.3495]
[1727192644620,4.73137166,2615.3,2614.8,4.17388]
[1727192645246,3.8239,2615.2,2614.8,0.3495]
[1727192645446,0.95113428,2615.1,2614.7,3.82439]
[1727192645756,0.95113428,2615.1,2614.5,11.54424]
[1727192645757,5.56579428,2615.1,2614.5,4.17424]
[1727192645975,4.61476,2615.1,2614.5,3.82481]
[1727192646153,4.61476,2615.1,2614.6,3.82466]
[1727192646154,8.43881,2615.1,2614.6,3.82466]
[1727192646454,8.43881,2615.1,2614.3,4.1745]
[1727192646455,4.285576,2615.0,2614.3,4.1745]
[1727192646756,0.461476,2615.0,2614.5,3.8247]
[1727192646967,0.461476,2615.0,2614.6,3.8246]
[1727192647163,0.461476,2615.0,2614.6,7.64919]
[1727192647454,0.461476,2615.0,2614.6,3.82459]
[1727192647965,0.461476,2615.0,2614.5,3.82475]
[1727192648684,4.285566,2615.0,2614.5,3.82475]
[1727192649355,0.461476,2615.0,2614.4,3.82485]
[1727192649664,4.61472,2615.1,2614.6,3.82466]
[1727192650486,4.61472,2615.1,2614.4,3.82487]
[1727192650686,3.82433,2614.9,2614.4,3.82487]
[1727192651481,3.82433,2614.9,2614.4,7.64976]
[1727192652302,3.82409,2615.0,2614.5,3.82481]
[1727192652591,4.61465,2615.1,2614.6,3.8246]
[1727192652878,3.82418,2615.0,2614.4,7.64971]
[1727192653082,3.82418,2615.0,2614.5,3.82482]
[1727192653240,3.8243,2614.9,2614.4,3.82484]
[1727192653442,3.8243,2614.9,2614.4,7.64972]
[1727192653689,3.8243,2614.9,2614.4,3.82484]
[1727192653982,3.8243,2614.9,2614.5,3.82482]
[1727192654377,3.8241,2615.0,2614.4,3.82484]
[1727192654544,3.8241,2615.0,2614.5,3.82473]
[1727192656689,3.82411,2615.0,2614.6,3.82466]
[1727192659388,1.252165,2615.1,2614.6,3.82466]
[1727192659560,0.7907,2615.1,2614.7,3.82452]
[1727192659747,3.82372,2615.3,2614.9,3.82423]
[1727192660295,3.82372,2615.3,2614.7,3.82445]
[1727192660296,4.58634943,2615.3,2614.7,3.82445]
[1727192660763,3.82394,2615.1,2614.7,3.82445]
[1727192661798,3.82394,2615.1,2614.6,0.3495]
[1727192662095,3.82394,2615.1,2614.6,4.17414]
[1727192662394,6.96497094,2615.1,2614.6,4.17414]
[1727192662599,4.66497094,2615.1,2614.6,4.17414]
[1727192664381,4.66497094,2615.1,2614.1,4.05082117]
[1727192664382,0.7907,2614.9,2614.5,3.82469]
[1727192664584,0.7907,2614.9,2614.2,3.82518]
[1727192664585,3.82468,2614.6,2614.2,3.82518]
[1727192664819,3.92030589,2614.6,2614.2,3.82518]
[1727192665003,7.74510589,2614.6,2614.0,8.00045]
[1727192665209,7.64948,2614.6,2614.1,3.82539]
[1727192665497,3.8249,2614.5,2614.0,8.00039]
[1727192665659,4.27765619,2614.6,2614.1,3.82532]
[1727192665860,0.7907,2614.5,2614.1,3.82532]
[1727192666096,0.7907,2614.5,2613.9,3.82565]
[1727192666097,4.61561,2614.5,2613.9,3.82565]
[1727192666268,4.33194862,2614.4,2614.1,0.41075815]
[1727192666471,3.82512,2614.3,2614.1,0.82154018]
[1727192666658,3.82512,2614.3,2614.1,0.41078203]
[1727192666862,3.82526,2614.2,2614.1,0.41078203]
[1727192667086,4.71160276,2614.2,2614.1,0.41078203]
[1727192667908,4.61596,2614.2,2614.1,0.41078203]
[1727192669618,4.61596,2614.2,2613.7,3.82589]
[1727192669906,3.92108401,2614.1,2613.6,3.82604]
[1727192671716,3.82544,2614.1,2613.6,3.82604]
[1727192672219,5.60022975,2614.2,2613.6,3.82604]
[1727192672511,5.60022975,2614.2,2613.7,3.82594]
[1727192672712,9.42558975,2614.2,2613.7,3.82594]
[1727192672882,5.60022975,2614.2,2613.7,3.82594]
[1727192673280,3.50551671,2614.1,2613.4,3.82635]
[1727192673498,0.775,2613.8,2613.2,3.8528814]
[1727192673682,0.09565865,2613.7,2613.3,3.82656]
[1727192674007,4.60095,2613.8,2613.3,3.82656]
[1727192674618,0.775,2613.8,2613.2,3.8528814]
[1727192674915,4.60092,2613.8,2613.3,3.82656]
[1727192675122,5.10588187,2613.8,2613.3,3.82656]
[1727192675622,5.10588187,2613.8,2613.2,3.8528814]
[1727192675804,0.09566039,2613.7,2613.3,3.82648]
[1727192676685,5.10588187,2613.8,2613.3,3.82648]
[1727192677583,8.93181187,2613.8,2613.3,3.82648]
[1727192677808,0.89318119,2613.7,2613.3,3.82648]
[1727192679335,5.10581187,2613.8,2613.3,3.82648]
[1727192680308,4.60085,2613.8,2613.3,3.82648]
[1727192683120,4.60085,2613.8,2613.3,7.65298]
[1727192683520,0.09566024,2613.7,2613.3,3.82648]
[1727192683732,4.60085,2613.8,2613.3,3.82648]
[1727192684236,4.60085,2613.8,2613.3,7.65298]
[1727192684407,4.60085,2613.8,2613.3,3.82648]
[1727192684595,4.60085,2613.8,2613.3,7.65298]
[1727192684799,3.82606,2613.7,2613.2,3.8529714]
[1727192685006,4.286145,2613.7,2613.2,3.8529714]
[1727192685208,3.82606,2613.7,2613.2,0.0262514]
[1727192685437,3.82606,2613.7,2613.3,3.82657]
[1727192686424,0.775,2613.8,2613.4,3.8263]
[1727192686626,4.60636,2614.0,2613.5,3.82618]
[1727192687222,3.82579,2613.9,2613.4,3.8264]
[1727192687812,3.82579,2613.9,2613.4,7.65276]
[1727192688857,6.178546,2614.0,2613.4,3.82636]
[1727192689030,10.004226,2614.0,2613.5,3.82627]
[1727192689227,10.004196,2614.0,2613.5,3.82627]
[1727192689450,6.178546,2614.0,2613.5,3.82627]
[1727192689621,10.004206,2614.0,2613.5,3.82627]
[1727192690122,10.004176,2614.0,2613.5,3.82627]
[1727192690754,6.178546,2614.0,2613.5,3.82627]
[1727192690945,6.178546,2614.0,2613.4,3.82636]
[1727192690946,4.6064,2614.0,2613.6,3.82613]
[1727192691141,4.6064,2614.0,2613.5,3.82627]
[1727192691525,0.7808,2614.0,2613.6,3.82606]
[1727192691867,4.60602,2614.3,2613.8,3.82575]
[1727192692021,4.60599,2614.3,2613.8,3.82575]
[1727192694451,6.178081,2614.3,2613.8,7.65151]
[1727192694759,6.178081,2614.3,2613.8,3.82575]
[1727192695361,4.60599,2614.3,2613.9,3.82569]
[1727192695527,4.60599,2614.3,2613.8,3.82575]
[1727192696922,0.7808,2614.6,2613.9,2.84984689]
[1727192697157,3.82482,2614.5,2614.0,3.82544]
[1727192697326,0.7808,2614.6,2614.1,3.8254]
[1727192697525,0.7808,2614.9,2614.4,3.82488]
[1727192697762,0.7808,2614.9,2614.4,3.82494]
[1727192698059,0.7808,2614.9,2614.6,3.82466]
[1727192698225,0.7808,2614.9,2614.5,3.82481]
[1727192699370,0.7808,2614.9,2614.6,3.82466]
[1727192700072,0.7808,2614.9,2614.4,3.82483]
[1727192700567,1.623691,2614.9,2614.0,3.3495]
[1727192700797,2.94547087,2614.8,2614.0,4.17496]
[1727192701059,0.7808,2614.5,2614.0,7.65088]
[1727192701269,0.7808,2614.5,2614.2,3.82524]
[1727192701455,0.806,2614.7,2614.2,3.82515]
[1727192701634,0.437448,2614.6,2614.3,3.82504]
[1727192701830,4.63053,2614.7,2614.1,4.17483]
[1727192702034,3.82491,2614.5,2614.0,3.82544]
[1727192702269,0.90163631,2614.4,2614.0,3.82544]
[1727192702570,4.63057,2614.7,2614.2,3.82523]
[1727192703049,8.45522,2614.7,2614.2,3.82523]
[1727192704470,8.45518,2614.7,2614.2,3.82523]
[1727192705153,4.63057,2614.7,2614.2,3.82523]
[1727192705348,5.1548682,2614.7,2614.2,3.82523]
[1727192705569,8.9795182,2614.7,2614.2,3.82523]